[Event "FIDE CB Open 2022"]
[Site "Ceske Budejovice"]
[Date "2022.07.01"]
[Round "1.41"]
[White "Laith, Kasib"]
[Black "Zednicek, Filip"]
[Result "1-0"]
[ECO "A08"]
[WhiteElo "2079"]
[BlackElo "1688"]
[Annotator "NA RC"]
[PlyCount "31"]
[EventDate "2022.07.01"]
[EventType "swiss"]
[EventCountry "CZE"]
[SourceTitle "playchess.com"]
[Source "ChessBase"]
[SourceQuality "1"]
[TimeControl "40/5400+30:1800+30"]

1. Nf3 {[%emt 0:00:05]} d5 {[%emt 0:00:37]} 2. g3 {[%emt 0:00:25]} c5 {[%emt 0:00:54]} 3. Bg2 {[%emt 0:00:30]} Nc6 {[%emt 0:00:49]} 4. d3 {[%emt 0:00:23]} Nf6 {[%emt 0:00:32]} 5. O-O {[%emt 0:00:20]} e5 {[%emt 0:06:02]} 6. Nbd2 {[%emt 0:03:53]} Be7 {[%emt 0:04:51]} 7. e4 {[%emt 0:00:17]} O-O {[%emt 0:02:22]} 8. Re1 {[%emt 0:08:44]} d4 {[%emt 0:16:15]} 9. a4 {[%emt 0:02:15]} Qc7 {[%emt 0:04:05]} 10. Nc4 {[%emt 0:03:06]} Be6 {[%emt 0:02:57]} 11. Ng5 {[%emt 0:01:27]} Bxc4 {[%emt 0:02:56]} 12. dxc4 {[%emt 0:00:09]} Rad8 {[%emt 0:02:40]} 13. f4 {[%emt 0:02:55]} Bd6 {[%emt 0:04:11]} 14. f5 {[%emt 0:13:00]} Be7 {[%emt 0:01:45]} 15. Bf1 {[%emt 0:00:26]} Ng4 {[%emt 0:01:31]} 16. Qxg4 {[%emt 0:01:51]} 1-0

[Event "FIDE CB Open 2022"]
[Site "Ceske Budejovice"]
[Date "2022.07.01"]
[Round "1.42"]
[White "Svoboda, Daniel"]
[Black "Placer, Sebastian"]
[Result "0-1"]
[ECO "C18"]
[WhiteElo "1679"]
[BlackElo "2062"]
[Annotator "NA RC"]
[PlyCount "74"]
[EventDate "2022.07.01"]
[EventType "swiss"]
[EventCountry "CZE"]
[SourceTitle "playchess.com"]
[Source "ChessBase"]
[SourceQuality "1"]
[TimeControl "40/5400+30:1800+30"]

1. e4 {[%emt 0:00:03]} e6 {[%emt 0:00:14]} 2. d4 {[%emt 0:00:17]} d5 {[%emt 0:00:05]} 3. Nc3 {[%emt 0:00:13]} Bb4 {[%emt 0:00:13]} 4. e5 {[%emt 0:00:11]} c5 {[%emt 0:00:05]} 5. a3 {[%emt 0:00:18]} Ba5 {[%emt 0:00:23]} 6. b4 {[%emt 0:02:25]} cxd4 {[%emt 0:00:13]} 7. Nb5 {[%emt 0:02:32]} Bc7 {[%emt 0:00:22]} 8. Nf3 {[%emt 0:05:06]} Nc6 {[%emt 0:04:42]} 9. Bf4 {[%emt 0:04:35]} Nge7 {[%emt 0:08:38]} 10. Nbxd4 {[%emt 0:14:38]} O-O {[%emt 0:18:31]} 11. Bg3 {[%emt 0:05:10]} Nxd4 {[%emt 0:03:22]} 12. Nxd4 {[%emt 0:03:06]} f6 {[%emt 0:07:45]} 13. Qg4 {[%emt 0:13:44]} Ng6 {[%emt 0:10:39]} 14. Qh3 {[%emt 0:14:57]} Bxe5 {[%emt 0:03:08]} 15. Bxe5 {[%emt 0:01:28]} Nxe5 {[%emt 0:00:37]} 16. Bd3 {[%emt 0:01:35]} Nxd3+ {[%emt 0:00:12]} 17. Qxd3 {[%emt 0:00:14]} e5 {[%emt 0:00:13]} 18. Nf5 {[%emt 0:02:03]} Be6 {[%emt 0:00:56]} 19. Ng3 {[%emt 0:01:59]} Qc7 {[%emt 0:01:02]} 20. O-O {[%emt 0:01:16]} Rac8 {[%emt 0:00:13]} 21. Rac1 {[%emt 0:02:29]} Rfd8 {[%emt 0:00:32]} 22. Qe3 {[%emt 0:03:08]} d4 {[%emt 0:00:13]} 23. Qe4 {[%emt 0:00:55]} Qc6 {[%emt 0:00:44]} 24. Qh4 {[%emt 0:00:33]} Qc3 {[%emt 0:02:39]} 25. Ne4 {[%emt 0:04:05]} Qc6 {[%emt 0:00:46]} 26. h3 {[%emt 0:04:40]} Bf5 {[%emt 0:00:45]} 27. Rfe1 {[%emt 0:01:03]} Bxe4 {[%emt 0:00:18]} 28. Rxe4 {[%emt 0:00:29]} Qc3 {[%emt 0:05:50]} 29. Rg4 {[%emt 0:01:41]} Rc6 {[%emt 0:03:45]} 30. Qh6 {[%emt 0:02:01]} Rd7 {[%emt 0:01:06]} 31. Qh5 {[%emt 0:01:35]} g6 {[%emt 0:01:56]} 32. Qf5 {[%emt 0:05:04]} Rf7 {[%emt 0:02:26]} 33. Qh5 {[%emt 0:01:26]} d3 {[%emt 0:00:23]} 34. Qh6 {[%emt 0:00:41]} dxc2 {[%emt 0:02:07]} 35. Rg3 {[%emt 0:01:00]} Qd4 {[%emt 0:00:18]} 36. b5 {[%emt 0:00:58]} Rcc7 {[%emt 0:00:16]} 37. Re3 {[%emt 0:00:51]} Qd2 {[%emt 0:00:47]} 0-1

[Event "FIDE CB Open 2022"]
[Site "Ceske Budejovice"]
[Date "2022.07.01"]
[Round "1.43"]
[White "Valantiejus, Vaidotas"]
[Black "Rybacek, Martin"]
[Result "1-0"]
[ECO "C10"]
[WhiteElo "2062"]
[BlackElo "1650"]
[Annotator "RC"]
[PlyCount "115"]
[EventDate "2022.07.01"]
[EventType "swiss"]
[EventCountry "CZE"]
[SourceTitle "playchess.com"]
[Source "ChessBase"]
[SourceQuality "1"]
[TimeControl "40/5400+30:1800+30"]

1. e4 {[%emt 0:00:07]} e6 {[%emt 0:00:14]} 2. d4 {[%emt 0:00:09]} d5 {[%emt 0:00:35]} 3. Nd2 {[%emt 0:00:21]} dxe4 {[%emt 0:01:08]} 4. Nxe4 {[%emt 0:00:06]} Nd7 {[%emt 0:00:33]} 5. Nf3 {[%emt 0:00:30]} Ngf6 {[%emt 0:00:43]} 6. Nxf6+ {[%emt 0:01:20]} Nxf6 {[%emt 0:00:38]} 7. c3 {[%emt 0:02:06]} c5 {[%emt 0:02:32]} 8. Bd3 {[%emt 0:05:12]} Bd6 {[%emt 0:04:35]} 9. Bc2 {[%emt 0:07:24]} h6 {[%emt 0:04:07]} 10. dxc5 {[%emt 0:16:30]} Bxc5 {[%emt 0:05:39]} 11. Ba4+ {[%emt 0:01:00]} Bd7 {[%emt 0:04:28]} 12. Ne5 {[%emt 0:01:04]} a6 {[%emt 0:13:29]} 13. Nxd7 {[%emt 0:01:08]} Nxd7 {[%emt 0:02:16]} 14. O-O {[%emt 0:04:38]} b5 {[%emt 0:02:03]} 15. Bc2 {[%emt 0:00:10]} Nf6 {[%emt 0:02:28]} 16. Qe2 {[%emt 0:01:07]} O-O {[%emt 0:01:32]} 17. Bf4 {[%emt 0:03:04]} Qe7 {[%emt 0:04:00]} 18. Rfd1 {[%emt 0:04:03]} Rad8 {[%emt 0:01:01]} 19. a4 {[%emt 0:01:19]} Rxd1+ {[%emt 0:02:31]} 20. Rxd1 {[%emt 0:00:24]} Qb7 {[%emt 0:18:10]} 21. Bd3 {[%emt 0:11:50]} bxa4 {[%emt 0:02:36]} 22. Ra1 {[%emt 0:01:37]} a5 {[%emt 0:08:33]} 23. Rxa4 {[%emt 0:00:33]} Qb6 {[%emt 0:00:17]} 24. Be5 {[%emt 0:05:02]} Be7 {[%emt 0:01:10]} 25. Bd4 {[%emt 0:04:41]} Qc7 {[%emt 0:01:02]} 26. h3 {[%emt 0:01:01]} Ra8 {[%emt 0:01:51]} 27. b4 {[%emt 0:01:28]} Bd8 {[%emt 0:01:17]} 28. b5 {[%emt 0:01:42]} Qd6 {[%emt 0:01:12]} 29. Be5 {[%emt 0:02:31]} Qc5 {[%emt 0:00:53]} 30. c4 {[%emt 0:02:33]} Nd7 {[%emt 0:03:44]} 31. Bb2 {[%emt 0:03:31]} Bb6 {[%emt 0:03:57]} 32. Ra2 {[%emt 0:02:54]} Re8 {[%emt 0:01:17]} 33. Bc3 {[%emt 0:00:58]} Qc7 {[%emt 0:01:14]} 34. Be4 {[%emt 0:02:52]} Nc5 {[%emt 0:02:19]} 35. Be5 {[%emt 0:02:00]} Qe7 {[%emt 0:00:43]} 36. Bb1 {[%emt 0:00:49]} Rd8 {[%emt 0:00:26]} 37. Rd2 {[%emt 0:00:40]} Rxd2 {[%emt 0:01:27]} 38. Qxd2 {[%emt 0:00:01]} Qd7 {[%emt 0:00:12]} 39. Qc2 {[%emt 0:07:10]} f5 {[%emt 0:00:56]} 40. Qe2 {[%emt 0:02:14]} a4 {[%emt 0:01:24]} 41. Bb2 {[%emt 0:05:36]} Bc7 {[%emt 0:02:18]} 42. Bc2 {[%emt 0:02:13]} Qd6 {[%emt 0:00:28]} 43. g3 {[%emt 0:00:15]} Bb6 {[%emt 0:01:59]} 44. Be5 {[%emt 0:06:14]} Qd7 {[%emt 0:01:05]} 45. Qe1 {[%emt 0:02:17]} Nd3 {[%emt 0:10:03]} 46. Bxd3 {[%emt 0:00:09]} Qxd3 {[%emt 0:00:06]} 47. Qc3 {[%emt 0:00:28]} Qxc3 {[%emt 0:15:50]} 48. Bxc3 {[%emt 0:19:29]} a3 {[%emt 0:03:29]} 49. Kf1 {[%emt 0:00:30]} a2 {[%emt 0:00:30]} 50. Ke2 {[%emt 0:00:30]} e5 {[%emt 0:00:30]} 51. Bxe5 {[%emt 0:00:30]} Bd8 {[%emt 0:00:30]} 52. b6 {[%emt 0:00:30]} Bxb6 {[%emt 0:00:30]} 53. Kd2 {[%emt 0:00:30]} Bd8 {[%emt 0:00:30]} 54. Kc2 {[%emt 0:00:30]} Bf6 {[%emt 0:00:30]} 55. Bxf6 {[%emt 0:00:30]} gxf6 {[%emt 0:00:30]} 56. Kb2 {[%emt 0:00:30]} Kf7 {[%emt 0:00:30]} 57. Kxa2 {[%emt 0:00:30]} Ke7 {[%emt 0:00:30]} 58. Kb3 {[%emt 0:00:30]} 1-0

[Event "FIDE CB Open 2022"]
[Site "Ceske Budejovice"]
[Date "2022.07.01"]
[Round "1.44"]
[White "Hammel, Juergen"]
[Black "Simecek, Bohumil"]
[Result "0-1"]
[ECO "B13"]
[WhiteElo "1650"]
[BlackElo "2059"]
[Annotator "NA RC"]
[PlyCount "60"]
[EventDate "2022.07.01"]
[EventType "swiss"]
[EventCountry "CZE"]
[SourceTitle "playchess.com"]
[Source "ChessBase"]
[SourceQuality "1"]
[TimeControl "40/5400+30:1800+30"]

1. e4 {[%emt 0:00:08]} c6 {[%emt 0:00:01]} 2. Nf3 {[%emt 0:00:30]} d5 {[%emt 0:01:08]} 3. exd5 {[%emt 0:00:23]} cxd5 {[%emt 0:00:14]} 4. d4 {[%emt 0:00:13]} Nc6 {[%emt 0:00:10]} 5. Bb5 {[%emt 0:00:34]} a6 {[%emt 0:03:29]} 6. Ba4 {[%emt 0:11:24]} Nf6 {[%emt 0:02:42]} 7. Ne5 {[%emt 0:01:15]} Bd7 {[%emt 0:08:12]} 8. Nxd7 {[%emt 0:00:45]} Qxd7 {[%emt 0:01:34]} 9. c3 {[%emt 0:00:14]} e6 {[%emt 0:01:17]} 10. Nd2 {[%emt 0:00:37]} Bd6 {[%emt 0:07:26]} 11. Nf3 {[%emt 0:04:43]} b5 {[%emt 0:00:49]} 12. Bc2 {[%emt 0:00:58]} h6 {[%emt 0:00:40]} 13. Bd2 {[%emt 0:03:53]} Qc7 {[%emt 0:09:55]} 14. Qe2 {[%emt 0:11:06]} O-O {[%emt 0:07:35]} 15. O-O {[%emt 0:08:43]} Rfc8 {[%emt 0:05:44]} 16. Rac1 {[%emt 0:02:34]} Bf4 {[%emt 0:02:50]} 17. Rfe1 {[%emt 0:10:31]} Bxd2 {[%emt 0:02:49]} 18. Qxd2 {[%emt 0:01:39]} Na5 {[%emt 0:00:32]} 19. b3 {[%emt 0:01:14]} Nb7 {[%emt 0:01:38]} 20. Ne5 {[%emt 0:03:46]} Nd6 {[%emt 0:03:51]} 21. f3 {[%emt 0:02:07]} Ra7 {[%emt 0:04:21]} 22. g4 {[%emt 0:01:09]} Qe7 {[%emt 0:06:41]} 23. h4 {[%emt 0:06:24]} Rac7 {[%emt 0:02:48]} 24. g5 {[%emt 0:01:01]} hxg5 {[%emt 0:01:44]} 25. hxg5 {[%emt 0:00:30]} Nh5 {[%emt 0:00:21]} 26. Re2 {[%emt 0:04:23]} g6 {[%emt 0:04:07]} 27. Bb1 {[%emt 0:11:26]} b4 {[%emt 0:02:41]} 28. c4 {[%emt 0:00:57]} dxc4 {[%emt 0:06:27]} 29. Ng4 {[%emt 0:00:21]} cxb3 {[%emt 0:06:57]} 30. Rxc7 {[%emt 0:02:34]} Qxc7 {[%emt 0:00:15]} 0-1

[Event "FIDE CB Open 2022"]
[Site "Ceske Budejovice"]
[Date "2022.07.01"]
[Round "1.45"]
[White "Kovalskyi, Roman"]
[Black "Pisar, Tomas"]
[Result "1-0"]
[ECO "C55"]
[WhiteElo "2056"]
[BlackElo "1640"]
[Annotator "NA RC"]
[PlyCount "63"]
[EventDate "2022.07.01"]
[EventType "swiss"]
[EventCountry "CZE"]
[SourceTitle "playchess.com"]
[Source "ChessBase"]
[SourceQuality "1"]
[TimeControl "40/5400+30:1800+30"]

1. e4 {[%emt 0:00:03]} e5 {[%emt 0:00:12]} 2. Nf3 {[%emt 0:00:06]} Nc6 {[%emt 0:00:04]} 3. Bc4 {[%emt 0:00:04]} Be7 {[%emt 0:00:13]} 4. O-O {[%emt 0:00:31]} Nf6 {[%emt 0:00:03]} 5. d3 {[%emt 0:01:10]} O-O {[%emt 0:01:55]} 6. c3 {[%emt 0:00:21]} d6 {[%emt 0:00:07]} 7. a4 {[%emt 0:00:06]} Na5 {[%emt 0:03:33]} 8. Ba2 {[%emt 0:00:06]} c5 {[%emt 0:00:18]} 9. Na3 {[%emt 0:00:07]} Nc6 {[%emt 0:12:02]} 10. Nc4 {[%emt 0:00:33]} a6 {[%emt 0:01:49]} 11. Ne3 {[%emt 0:00:55]} Rb8 {[%emt 0:06:12]} 12. Bd5 {[%emt 0:09:55]} Nxd5 {[%emt 0:02:21]} 13. exd5 {[%emt 0:00:23]} Na7 {[%emt 0:00:31]} 14. b4 {[%emt 0:01:43]} cxb4 {[%emt 0:06:59]} 15. cxb4 {[%emt 0:00:02]} b5 {[%emt 0:02:28]} 16. a5 {[%emt 0:00:08]} f5 {[%emt 0:01:17]} 17. Qb3 {[%emt 0:00:45]} Bf6 {[%emt 0:15:30]} 18. Bb2 {[%emt 0:03:39]} g6 {[%emt 0:01:08]} 19. Rac1 {[%emt 0:13:30]} Bb7 {[%emt 0:00:36]} 20. Rfd1 {[%emt 0:01:03]} Qd7 {[%emt 0:02:42]} 21. d4 {[%emt 0:08:03]} e4 {[%emt 0:00:40]} 22. Ne5 {[%emt 0:00:26]} dxe5 {[%emt 0:12:03]} 23. dxe5 {[%emt 0:00:07]} Bg7 {[%emt 0:06:20]} 24. d6+ {[%emt 0:15:42]} Kh8 {[%emt 0:00:28]} 25. e6 {[%emt 0:00:09]} Qe8 {[%emt 0:01:39]} 26. Bxg7+ {[%emt 0:09:41]} Kxg7 {[%emt 0:00:04]} 27. Rc7+ {[%emt 0:00:04]} Kh6 {[%emt 0:00:10]} 28. Qc3 {[%emt 0:02:08]} Qxe6 {[%emt 0:03:06]} 29. Qg7+ {[%emt 0:00:08]} Kg5 {[%emt 0:00:10]} 30. h4+ {[%emt 0:07:54]} Kf4 {[%emt 0:00:05]} 31. Qh6+ {[%emt 0:00:19]} Ke5 {[%emt 0:00:07]} 32. Qg5 {[%emt 0:00:03]} 1-0

[Event "FIDE CB Open 2022"]
[Site "Ceske Budejovice"]
[Date "2022.07.01"]
[Round "1.46"]
[White "Pavlis, Matej"]
[Black "Mrazik, Tomas"]
[Result "0-1"]
[ECO "E62"]
[WhiteElo "1625"]
[BlackElo "2055"]
[Annotator "RC"]
[PlyCount "120"]
[EventDate "2022.07.01"]
[EventType "swiss"]
[EventCountry "CZE"]
[SourceTitle "playchess.com"]
[Source "ChessBase"]
[SourceQuality "1"]
[TimeControl "40/5400+30:1800+30"]

1. d4 {[%emt 0:00:03]} Nf6 {[%emt 0:00:07]} 2. Nf3 {[%emt 0:00:37]} g6 {[%emt 0:00:15]} 3. c4 {[%emt 0:00:46]} Bg7 {[%emt 0:00:11]} 4. g3 {[%emt 0:00:55]} O-O {[%emt 0:00:30]} 5. Bg2 {[%emt 0:00:46]} d6 {[%emt 0:00:40]} 6. O-O {[%emt 0:01:52]} Nc6 {[%emt 0:01:07]} 7. Nc3 {[%emt 0:06:09]} Bf5 {[%emt 0:00:53]} 8. Re1 {[%emt 0:03:44]} Ne4 {[%emt 0:02:04]} 9. Nh4 {[%emt 0:05:04]} Nxc3 {[%emt 0:01:35]} 10. bxc3 {[%emt 0:01:05]} Bd7 {[%emt 0:01:18]} 11. Rb1 {[%emt 0:05:00]} Rb8 {[%emt 0:04:10]} 12. e4 {[%emt 0:01:51]} e5 {[%emt 0:02:52]} 13. Be3 {[%emt 0:03:06]} b6 {[%emt 0:05:40]} 14. Nf3 {[%emt 0:10:13]} Qe8 {[%emt 0:10:33]} 15. Qd3 {[%emt 0:08:58]} Na5 {[%emt 0:11:12]} 16. Rbd1 {[%emt 0:06:24]} Be6 {[%emt 0:02:35]} 17. Nd2 {[%emt 0:07:11]} Qa4 {[%emt 0:03:26]} 18. Bf1 {[%emt 0:06:25]} f5 {[%emt 0:06:23]} 19. f3 {[%emt 0:05:18]} fxe4 {[%emt 0:03:10]} 20. fxe4 {[%emt 0:00:02]} Rf7 {[%emt 0:06:35]} 21. d5 {[%emt 0:03:19]} Bc8 {[%emt 0:01:37]} 22. Nb3 {[%emt 0:00:22]} Ba6 {[%emt 0:02:52]} 23. Nxa5 {[%emt 0:00:58]} Qxa5 {[%emt 0:01:23]} 24. Qc2 {[%emt 0:00:50]} Rbf8 {[%emt 0:01:41]} 25. Be2 {[%emt 0:03:36]} Bc8 {[%emt 0:00:21]} 26. Rf1 {[%emt 0:01:13]} Bh3 {[%emt 0:01:23]} 27. Rxf7 {[%emt 0:00:17]} Rxf7 {[%emt 0:00:07]} 28. Bf1 {[%emt 0:00:10]} Bd7 {[%emt 0:00:11]} 29. Qb2 {[%emt 0:02:31]} Rf3 {[%emt 0:03:47]} 30. Re1 {[%emt 0:01:32]} Qa4 {[%emt 0:03:55]} 31. Bg2 {[%emt 0:03:52]} Rf8 {[%emt 0:00:15]} 32. Bf1 {[%emt 0:00:11]} Bg4 {[%emt 0:04:53]} 33. Be2 {[%emt 0:02:49]} Bh3 {[%emt 0:00:07]} 34. Qb3 {[%emt 0:01:07]} Qe8 {[%emt 0:02:02]} 35. Bf1 {[%emt 0:00:31]} Bd7 {[%emt 0:01:34]} 36. Be2 {[%emt 0:00:45]} a5 {[%emt 0:02:16]} 37. Rf1 {[%emt 0:01:38]} Rxf1+ {[%emt 0:00:05]} 38. Bxf1 {[%emt 0:00:16]} Qf8 {[%emt 0:00:05]} 39. Qd1 {[%emt 0:01:10]} h5 {[%emt 0:01:16]} 40. Be2 {[%emt 0:02:58]} Kh7 {[%emt 0:08:04]} 41. Bg5 {[%emt 0:33:29]} Qe8 {[%emt 0:33:31]} 42. Qf1 {[%emt 0:00:00]} Bc8 {[%emt 0:00:00]} 43. Bd3 {[%emt 0:00:00]} Qd7 {[%emt 0:00:00]} 44. Qd1 {[%emt 0:00:00]} Bh6 {[%emt 0:00:00]} 45. Qd2 {[%emt 0:00:00]} Bxg5 {[%emt 0:00:00]} 46. Qxg5 {[%emt 0:00:00]} Qf7 {[%emt 0:00:00]} 47. Be2 {[%emt 0:00:00]} Bd7 {[%emt 0:00:00]} 48. Kg2 {[%emt 0:00:00]} Ba4 {[%emt 0:00:00]} 49. g4 {[%emt 0:00:00]} Bc2 {[%emt 0:00:00]} 50. Qe3 {[%emt 0:00:00]} hxg4 {[%emt 0:00:00]} 51. Bxg4 {[%emt 0:00:00]} Qf4 {[%emt 0:00:00]} 52. Qxf4 {[%emt 0:00:00]} exf4 {[%emt 0:00:00]} 53. Kf3 {[%emt 0:00:00]} g5 {[%emt 0:00:00]} 54. Bf5+ {[%emt 0:00:00]} Kg7 {[%emt 0:00:00]} 55. Ke2 {[%emt 0:00:00]} Kf6 {[%emt 0:00:00]} 56. Kd2 {[%emt 0:00:00]} Bb1 {[%emt 0:00:11]} 57. a3 {[%emt 0:00:00]} Ke5 {[%emt 0:00:16]} 58. Ke2 {[%emt 0:02:09]} Bxe4 {[%emt 0:00:33]} 59. Bg4 {[%emt 0:00:08]} Bf5 {[%emt 0:01:02]} 60. Bf3 {[%emt 0:04:37]} g4 {[%emt 0:00:37]} 0-1

[Event "FIDE CB Open 2022"]
[Site "Ceske Budejovice"]
[Date "2022.07.01"]
[Round "1.47"]
[White "Sudrich, Radek"]
[Black "Svejda, Karel"]
[Result "1-0"]
[ECO "E85"]
[WhiteElo "2049"]
[BlackElo "1619"]
[Annotator "NA RC"]
[PlyCount "65"]
[EventDate "2022.07.01"]
[EventType "swiss"]
[EventCountry "CZE"]
[SourceTitle "playchess.com"]
[Source "ChessBase"]
[SourceQuality "1"]
[TimeControl "40/5400+30:1800+30"]

1. d4 {[%emt 0:00:16]} Nf6 {[%emt 0:00:09]} 2. c4 {[%emt 0:00:07]} g6 {[%emt 0:00:06]} 3. Nc3 {[%emt 0:00:07]} Bg7 {[%emt 0:00:05]} 4. e4 {[%emt 0:00:24]} d6 {[%emt 0:00:06]} 5. f3 {[%emt 0:00:27]} O-O {[%emt 0:00:16]} 6. Be3 {[%emt 0:00:03]} e5 {[%emt 0:00:16]} 7. dxe5 {[%emt 0:00:07]} dxe5 {[%emt 0:00:09]} 8. Qxd8 {[%emt 0:00:13]} Rxd8 {[%emt 0:00:02]} 9. Nd5 {[%emt 0:00:02]} Nxd5 {[%emt 0:05:12]} 10. cxd5 {[%emt 0:00:03]} c6 {[%emt 0:05:14]} 11. Bc4 {[%emt 0:00:34]} cxd5 {[%emt 0:01:27]} 12. Bxd5 {[%emt 0:00:02]} Nc6 {[%emt 0:00:37]} 13. O-O-O {[%emt 0:03:40]} Bd7 {[%emt 0:09:14]} 14. Bg5 {[%emt 0:06:25]} Rdc8 {[%emt 0:05:04]} 15. Bxf7+ {[%emt 0:04:17]} Kxf7 {[%emt 0:00:01]} 16. Rxd7+ {[%emt 0:00:12]} Kf8 {[%emt 0:01:36]} 17. Kb1 {[%emt 0:06:12]} Nd4 {[%emt 0:04:41]} 18. Nh3 {[%emt 0:03:16]} b6 {[%emt 0:05:50]} 19. Rc1 {[%emt 0:03:52]} h6 {[%emt 0:03:49]} 20. Rxc8+ {[%emt 0:03:07]} Rxc8 {[%emt 0:00:19]} 21. Be3 {[%emt 0:00:54]} Nc6 {[%emt 0:07:31]} 22. Nf2 {[%emt 0:03:02]} Rd8 {[%emt 0:04:18]} 23. Rc7 {[%emt 0:01:49]} Rd6 {[%emt 0:01:53]} 24. a3 {[%emt 0:01:43]} h5 {[%emt 0:07:02]} 25. b4 {[%emt 0:06:15]} Bf6 {[%emt 0:03:34]} 26. b5 {[%emt 0:03:20]} Nd4 {[%emt 0:01:59]} 27. a4 {[%emt 0:01:32]} Ne2 {[%emt 0:02:19]} 28. Rxa7 {[%emt 0:05:16]} Bd8 {[%emt 0:03:13]} 29. Kc2 {[%emt 0:01:56]} Ke8 {[%emt 0:01:45]} 30. Nd3 {[%emt 0:03:32]} Bf6 {[%emt 0:01:27]} 31. Rb7 {[%emt 0:01:38]} Nd4+ {[%emt 0:01:25]} 32. Bxd4 {[%emt 0:00:28]} Rxd4 {[%emt 0:00:07]} 33. Rxb6 {[%emt 0:00:38]} 1-0

[Event "FIDE CB Open 2022"]
[Site "Ceske Budejovice"]
[Date "2022.07.03"]
[Round "1.48"]
[White "Almaini, Aishah Sarhan"]
[Black "Puncochar, Jiri"]
[Result "0-1"]
[ECO "E38"]
[WhiteElo "1615"]
[BlackElo "2020"]
[Annotator "NA RC"]
[PlyCount "53"]
[EventDate "2022.07.01"]
[EventType "swiss"]
[EventCountry "CZE"]
[SourceTitle "playchess.com"]
[Source "ChessBase"]
[SourceQuality "1"]
[TimeControl "40/5400+30:1800+30"]

1. d4 {[%emt 0:00:05]} Nf6 {[%emt 0:00:08]} 2. c4 {[%emt 0:00:08]} e6 {[%emt 0:00:12]} 3. Nc3 {[%emt 0:00:09]} Bb4 {[%emt 0:00:25]} 4. e3 {[%emt 0:00:11]} O-O {[%emt 0:01:03]} 5. Nf3 {[%emt 0:00:32]} d5 {[%emt 0:00:46]} 6. Qc2 {[%emt 0:03:38]} Nbd7 {[%emt 0:01:27]} 7. Bd3 {[%emt 0:05:01]} c5 {[%emt 0:03:24]} 8. a3 {[%emt 0:00:08]} Bxc3+ {[%emt 0:00:42]} 9. bxc3 {[%emt 0:00:12]} dxc4 {[%emt 0:00:45]} 10. Bxc4 {[%emt 0:00:12]} a6 {[%emt 0:03:27]} 11. a4 {[%emt 0:03:21]} b6 {[%emt 0:01:54]} 12. e4 {[%emt 0:15:11]} Bb7 {[%emt 0:09:04]} 13. e5 {[%emt 0:11:49]} Nd5 {[%emt 0:05:55]} 14. Ng5 {[%emt 0:05:53]} g6 {[%emt 0:01:42]} 15. Ne4 {[%emt 0:11:05]} Qh4 {[%emt 0:13:16]} 16. Ng5 {[%emt 0:21:53]} Nf4 {[%emt 0:07:13]} 17. g3 {[%emt 0:07:31]} Qxg5 {[%emt 0:01:08]} 18. Bxf4 {[%emt 0:00:02]} Qg4 {[%emt 0:03:48]} 19. Be2 {[%emt 0:02:54]} Qh3 {[%emt 0:00:46]} 20. Rg1 {[%emt 0:05:44]} cxd4 {[%emt 0:03:47]} 21. c4 {[%emt 0:02:25]} Nc5 {[%emt 0:01:35]} 22. O-O-O {[%emt 0:00:48]} Be4 {[%emt 0:01:59]} 23. Qb2 {[%emt 0:02:00]} d3 {[%emt 0:01:27]} 24. Bf1 {[%emt 0:00:56]} Qxh2 {[%emt 0:01:12]} 25. Qxb6 {[%emt 0:00:10]} Qxf2 {[%emt 0:00:36]} 26. Qb1 {[%emt 0:00:59]} Qxg1 {[%emt 0:01:24]} 27. Bxd3 {[%emt 0:01:03]} 0-1

[Event "FIDE CB Open 2022"]
[Site "Ceske Budejovice"]
[Date "2022.07.01"]
[Round "1.49"]
[White "Hurtik, Matej"]
[Black "Jodas, Daniel"]
[Result "1-0"]
[ECO "B21"]
[WhiteElo "2018"]
[BlackElo "1614"]
[Annotator "NA RC"]
[PlyCount "51"]
[EventDate "2022.07.01"]
[EventType "swiss"]
[EventCountry "CZE"]
[SourceTitle "playchess.com"]
[Source "ChessBase"]
[SourceQuality "1"]
[TimeControl "40/5400+30:1800+30"]

1. e4 {[%emt 0:00:20]} c5 {[%emt 0:00:29]} 2. d4 {[%emt 0:00:21]} cxd4 {[%emt 0:00:51]} 3. Nf3 {[%emt 0:00:11]} e5 {[%emt 0:02:23]} 4. Bc4 {[%emt 0:00:20]} Nf6 {[%emt 0:05:00]} 5. O-O {[%emt 0:00:04]} d6 {[%emt 0:01:29]} 6. Ng5 {[%emt 0:00:32]} Be6 {[%emt 0:06:12]} 7. Nxe6 {[%emt 0:01:46]} fxe6 {[%emt 0:00:16]} 8. Bxe6 {[%emt 0:00:03]} Nbd7 {[%emt 0:01:30]} 9. c3 {[%emt 0:01:13]} Nc5 {[%emt 0:02:32]} 10. Bc4 {[%emt 0:00:03]} dxc3 {[%emt 0:04:58]} 11. Nxc3 {[%emt 0:07:10]} a6 {[%emt 0:01:30]} 12. Bg5 {[%emt 0:00:30]} Rc8 {[%emt 0:05:55]} 13. Bxf6 {[%emt 0:07:15]} Qxf6 {[%emt 0:01:11]} 14. Qg4 {[%emt 0:00:03]} Kd8 {[%emt 0:04:54]} 15. Nd5 {[%emt 0:00:30]} Qg6 {[%emt 0:08:55]} 16. Qh4+ {[%emt 0:00:34]} Ke8 {[%emt 0:01:45]} 17. Qh3 {[%emt 0:00:08]} Nd7 {[%emt 0:02:48]} 18. Rac1 {[%emt 0:00:55]} Kd8 {[%emt 0:02:49]} 19. Qa3 {[%emt 0:00:51]} Qxe4 {[%emt 0:03:13]} 20. Qa5+ {[%emt 0:00:17]} Ke8 {[%emt 0:00:35]} 21. Nc7+ {[%emt 0:00:34]} Ke7 {[%emt 0:01:32]} 22. Nd5+ {[%emt 0:00:31]} Ke8 {[%emt 0:00:26]} 23. Bd3 {[%emt 0:00:54]} Qxd3 {[%emt 0:02:41]} 24. Rxc8+ {[%emt 0:00:03]} Kf7 {[%emt 0:00:09]} 25. Rc3 {[%emt 0:02:43]} Qf5 {[%emt 0:03:14]} 26. Rf3 {[%emt 0:00:12]} 1-0

[Event "FIDE CB Open 2022"]
[Site "Ceske Budejovice"]
[Date "2022.07.01"]
[Round "1.50"]
[White "Simajchl, Adam"]
[Black "Radovic, Stefan"]
[Result "0-1"]
[ECO "D38"]
[WhiteElo "1610"]
[BlackElo "2018"]
[Annotator "NA RC"]
[PlyCount "48"]
[EventDate "2022.07.01"]
[EventType "swiss"]
[EventCountry "CZE"]
[SourceTitle "playchess.com"]
[Source "ChessBase"]
[SourceQuality "1"]
[TimeControl "40/5400+30:1800+30"]

1. d4 {[%emt 0:00:04]} d5 {[%emt 0:00:06]} 2. c4 {[%emt 0:00:04]} e6 {[%emt 0:00:05]} 3. Nc3 {[%emt 0:00:11]} Bb4 {[%emt 0:00:08]} 4. Nf3 {[%emt 0:01:30]} Nf6 {[%emt 0:00:07]} 5. Bg5 {[%emt 0:02:07]} h6 {[%emt 0:00:53]} 6. Bh4 {[%emt 0:00:10]} dxc4 {[%emt 0:04:23]} 7. Qa4+ {[%emt 0:02:12]} Nc6 {[%emt 0:00:37]} 8. e3 {[%emt 0:00:08]} g5 {[%emt 0:03:37]} 9. Bg3 {[%emt 0:00:17]} Bd7 {[%emt 0:12:32]} 10. Rc1 {[%emt 0:00:56]} a6 {[%emt 0:06:24]} 11. Ne5 {[%emt 0:07:56]} Bxc3+ {[%emt 0:01:08]} 12. Rxc3 {[%emt 0:02:13]} Nxe5 {[%emt 0:00:33]} 13. Qc2 {[%emt 0:01:18]} Nd3+ {[%emt 0:06:33]} 14. Bxd3 {[%emt 0:00:13]} cxd3 {[%emt 0:00:05]} 15. Qxd3 {[%emt 0:00:19]} Bb5 {[%emt 0:15:37]} 16. Qc2 {[%emt 0:00:02]} Nd5 {[%emt 0:00:48]} 17. Bxc7 {[%emt 0:02:20]} Nxc7 {[%emt 0:00:15]} 18. Rxc7 {[%emt 0:00:09]} Bc6 {[%emt 0:01:19]} 19. Rxc6 {[%emt 0:00:09]} bxc6 {[%emt 0:00:08]} 20. Qxc6+ {[%emt 0:00:03]} Kf8 {[%emt 0:03:05]} 21. O-O {[%emt 0:00:30]} Kg7 {[%emt 0:01:07]} 22. Qe4 {[%emt 0:00:30]} Qd5 {[%emt 0:00:20]} 23. Qb1 {[%emt 0:00:40]} Rac8 {[%emt 0:04:14]} 24. a3 {[%emt 0:01:21]} Rc6 {[%emt 0:02:59]} 0-1